bitfinex/quotes_SOLUSD_20240917
["timestamp","ask_amount","ask_price","bid_price","bid_amount"]
[1726570803073,20.0,133.05,133.01,29.7712482]
[1726570803240,20.0,133.05,133.02,7.5175]
[1726570803442,7.5153,133.07,133.03,7.517]
[1726570804147,20.0,133.07,133.03,7.5169]
[1726570804473,7.5137,133.09,133.03,15.0814]
[1726570804656,7.5137,133.09,133.04,6.0912]
[1726570804860,7.5137,133.09,133.04,13.6075]
[1726570805048,71.79867594,133.13,133.04,13.6075]
[1726570805244,7.5157,133.06,133.04,6.0912]
[1726570805649,7.5149,133.07,133.04,6.0912]
[1726570806268,7.5138,133.09,133.04,13.6074]
[1726570806469,20.0,133.08,133.04,13.6074]
[1726570806765,27.5145,133.08,133.04,6.0912]
[1726570807765,20.0,133.08,133.04,13.6072]
[1726570807970,7.5131,133.11,133.04,24.8812]
[1726570808272,7.5131,133.11,133.06,7.5152]
[1726570808471,7.5133,133.1,133.04,32.3976]
[1726570808645,7.5141,133.09,133.04,6.0912]
[1726570808845,53.01957594,133.13,133.04,6.0912]
[1726570809080,7.5127,133.11,133.04,24.8822]
[1726570809370,53.01957594,133.13,133.04,24.8822]
[1726570809371,7.5132,133.1,133.04,24.8822]
[1726570809876,7.5132,133.1,133.04,6.0912]
[1726570813954,7.5129,133.11,133.05,16.3054]
[1726570814473,27.5131,133.1,133.05,16.3054]
[1726570814972,7.5131,133.1,133.05,16.3054]
[1726570816150,7.5128,133.11,133.05,16.3054]
[1726570816359,27.5121,133.12,133.06,7.91905186]
[1726570816549,20.0,133.12,133.06,7.91905186]
[1726570817271,7.5127,133.11,133.06,6.4164]
[1726570817479,7.5121,133.12,133.06,6.4164]
[1726570817653,20.0,133.11,133.06,6.4164]
[1726570817857,7.5116,133.13,133.07,16.4543]
[1726570818064,20.0,133.12,133.07,16.4543]
[1726570818459,7.512,133.12,133.07,16.4543]
[1726570818960,7.5126,133.11,133.07,16.4543]
[1726570819282,7.5121,133.12,133.07,16.4543]
[1726570819786,7.5126,133.11,133.07,16.4543]
[1726570822989,7.5121,133.12,133.07,16.4543]
[1726570827495,20.0,133.12,133.07,16.4543]
[1726570827666,7.5114,133.13,133.09,6.3812]
[1726570827667,20.0,133.13,133.09,6.3812]
[1726570827867,20.0,133.13,133.1,16.3772]
[1726570828374,20.0,133.14,133.1,16.3772]
[1726570828563,27.5109,133.14,133.1,16.3772]
[1726570829070,7.5108,133.14,133.1,16.3772]
[1726570829379,0.2615482,133.15,133.11,1.50225029]
[1726570829556,27.7718482,133.15,133.1,16.3772]
[1726570829985,7.5109,133.14,133.1,16.3772]
[1726570830191,7.7719482,133.15,133.1,16.3772]
[1726570830361,7.7719482,133.15,133.09,6.3812]
[1726570830362,0.2615482,133.15,133.12,15.2386]
[1726570830561,0.2615482,133.15,133.13,1.50186938]
[1726570830756,0.2615482,133.15,133.12,15.2386]
[1726570835963,0.2615482,133.15,133.13,1.50194494]
[1726570836188,0.2615482,133.15,133.12,15.2386]
[1726570838794,7.7718482,133.15,133.12,15.2386]
[1726570838967,7.5126,133.11,133.03,7.5166]
[1726570839292,7.5126,133.11,133.02,18.7931]
[1726570839469,7.5121,133.12,133.03,7.517]
[1726570840091,7.5129,133.11,133.02,26.3106]
[1726570840396,7.5129,133.11,133.03,20.0]
[1726570840593,7.5132,133.1,133.03,20.0]
[1726570840815,7.5132,133.1,133.02,18.7931]
[1726570841392,7.5132,133.1,133.01,7.7796482]
[1726570841393,18.7806,133.12,133.01,0.2615482]
[1726570841580,7.5154,133.06,133.01,0.2615482]
[1726570841970,7.516,133.05,133.01,0.2615482]
[1726570842365,18.7861,133.08,133.01,0.2615482]
[1726570842588,43.776884,133.08,133.01,0.2615482]
[1726570842894,7.517,133.04,133.01,0.2615482]
[1726570843771,20.0,133.06,133.01,0.2615482]
[1726570844196,20.0,133.08,133.01,0.2615482]
[1726570844494,27.5143,133.08,133.01,0.2615482]
[1726570844872,7.5149,133.07,133.01,0.2615482]
[1726570845277,18.781,133.12,133.01,0.2615482]
[1726570845498,18.781,133.12,133.01,7.7796482]
[1726570845499,7.5139,133.09,133.01,7.7796482]
[1726570846710,7.5132,133.1,133.01,7.7796482]
[1726570847001,20.0,133.09,133.02,7.5176]
[1726570847708,20.0,133.09,133.01,26.5746482]
[1726570848287,27.5138,133.09,133.01,26.5746482]
[1726570848483,7.5138,133.09,133.01,19.0566482]
[1726570849098,7.5146,133.08,133.01,24.0384322]
[1726570849486,20.0,133.1,133.01,24.0384322]
[1726570849800,20.0,133.1,133.05,6.3974]
[1726570850001,20.0,133.1,133.06,15.6784]
[1726570850511,38.7775,133.14,133.06,15.6784]
[1726570850802,20.0,133.1,133.06,15.6784]
[1726570850987,20.0,133.1,133.06,13.32133943]
[1726570852688,20.08750809,133.14,133.06,13.32133943]
[1726570852689,7.5121,133.12,133.06,13.32133943]
[1726570852906,20.0,133.11,133.06,13.32133943]
[1726570853310,27.5127,133.11,133.06,13.32133943]
[1726570853705,7.5134,133.1,133.06,13.32133943]
[1726570854594,7.5127,133.11,133.06,13.32133943]
[1726570857412,7.5131,133.1,133.06,13.32133943]
[1726570857995,20.08750809,133.14,133.06,13.32133943]
[1726570857996,20.0,133.11,133.06,13.32133943]
[1726570858188,7.5139,133.09,133.06,13.32133943]
[1726570858815,7.5142,133.08,133.06,13.32133943]
[1726570859203,7.5148,133.07,133.06,13.32133943]
[1726570859409,7.5142,133.09,133.06,13.32133943]
[1726570861424,7.5139,133.09,133.06,13.32133943]
[1726570861821,20.0,133.11,133.06,13.32133943]
[1726570862031,7.5132,133.1,133.06,13.32133943]
[1726570863027,27.5127,133.11,133.06,13.32133943]
[1726570865315,7.514,133.09,133.06,13.32133943]
[1726570865727,7.5133,133.1,133.06,13.32133943]
[1726570866713,7.514,133.09,133.06,13.32133943]
[1726570866908,7.5133,133.1,133.06,13.32133943]
[1726570867115,20.0,133.12,133.06,13.32133943]
[1726570867443,7.5132,133.1,133.06,13.32133943]
[1726570868033,7.5137,133.09,133.06,13.32133943]
[1726570868433,7.5144,133.08,133.06,13.32133943]
[1726570868753,7.5139,133.09,133.06,13.32133943]
[1726570872349,7.5133,133.1,133.06,13.32133943]
[1726570875919,7.5137,133.09,133.06,13.32133943]
[1726570876750,7.5133,133.1,133.06,13.32133943]
[1726570877837,7.5121,133.12,133.06,13.32133943]
[1726570878144,7.5115,133.13,133.07,13.68575193]
[1726570878353,7.5115,133.13,133.08,1.50226005]
[1726570878542,7.7720482,133.15,133.08,33.55556084]
[1726570878845,7.7720482,133.15,133.09,1.50225039]
[1726570879146,7.7720482,133.15,133.09,12.18346084]
[1726570879357,7.5109,133.14,133.08,33.55556084]
[1726570879516,7.5109,133.14,133.08,21.3721]
[1726570879728,7.5114,133.13,133.08,21.3721]
[1726570879919,0.2615482,133.15,133.08,21.3721]
[1726570880226,7.5116,133.13,133.08,21.3721]
[1726570885050,7.7718482,133.15,133.09,12.18346084]
[1726570885348,7.7720482,133.15,133.09,12.18346084]
[1726570885523,7.5109,133.14,133.09,12.18346084]
[1726570885857,7.5109,133.14,133.08,52.34096084]
[1726570886045,7.5109,133.14,133.08,33.55556084]
[1726570886445,7.5109,133.14,133.08,21.3721]
[1726570886824,7.5109,133.14,133.08,33.55556084]
[1726570887825,7.5117,133.13,133.08,33.55556084]
[1726570888824,7.5111,133.14,133.08,33.55556084]
[1726570890035,7.7720482,133.15,133.09,12.18346084]
[1726570890232,7.7720482,133.15,133.1,12.18346084]
[1726570890553,0.2615482,133.15,133.1,12.18346084]
[1726570891366,7.7718482,133.15,133.1,12.18346084]
[1726570896451,7.7718482,133.15,133.09,12.18346084]
[1726570898965,0.2615482,133.15,133.14,28.18336084]
[1726570899168,0.2615482,133.15,133.14,15.9999]
[1726570900968,0.2615482,133.15,133.14,35.69416084]
[1726570901147,0.2615482,133.19,133.14,35.69416084]
[1726570901148,0.2615482,133.19,133.15,26.2855]
[1726570901359,0.2615482,133.19,133.16,12.18346084]
[1726570901966,0.2615482,133.19,133.17,12.18346084]
[1726570902269,0.2615482,133.19,133.18,42.86941307]
[1726570902468,0.2615482,133.19,133.18,33.85966084]
[1726570903179,0.2615482,133.19,133.18,65.14514484]
[1726570903469,0.2615482,133.19,133.18,57.63654484]
[1726570904677,0.2615482,133.19,133.18,21.6762]
[1726570906579,0.2615482,133.19,133.18,33.85966084]
[1726570910471,0.2615482,133.19,133.18,21.6762]
[1726570911368,0.2615482,133.19,133.18,33.85966084]
[1726570912185,0.2615482,133.19,133.18,41.36826084]
[1726570913274,0.2615482,133.19,133.18,33.85966084]
[1726570914273,0.2615482,133.19,133.18,41.36826084]
[1726570916059,0.2615482,133.19,133.18,66.64620262]
[1726570916262,0.2615482,133.19,133.18,65.14514484]
[1726570916663,0.2615482,133.23,133.21,26.2737]
[1726570916868,0.2615482,133.23,133.22,12.18346084]
[1726570917053,0.2615482,133.23,133.22,19.68976084]
[1726570917455,0.2615482,133.23,133.21,18.7673]
[1726570917456,0.2615482,133.23,133.21,30.95076084]
[1726570919573,0.2615482,133.23,133.22,12.18346084]
[1726570920486,0.2615482,133.23,133.21,30.95076084]
[1726570920782,0.2615482,133.23,133.21,12.18346084]
[1726570922484,0.2615482,133.23,133.22,12.18346084]
[1726570922667,0.2615482,133.23,133.22,19.68976084]
[1726570922867,0.2615482,133.23,133.22,43.46664484]
[1726570923087,0.2615482,133.23,133.22,60.16108409]
[1726570923382,0.2615482,133.23,133.22,65.12584484]
[1726570924459,0.2615482,133.23,133.22,29.1655]
[1726570924688,0.2615482,133.23,133.22,41.34896084]
[1726570924994,0.2615482,133.23,133.22,33.84266084]
[1726570925365,0.2615482,133.23,133.22,41.34896084]
[1726570925582,0.2615482,133.23,133.22,65.12584484]
[1726570926087,0.2615482,133.23,133.22,41.34896084]
[1726570926382,0.2615482,133.23,133.22,33.84266084]
[1726570927307,0.2615482,133.23,133.2,7.5072]
[1726570927308,0.2615482,133.23,133.18,22.7257]
[1726570927487,7.7676482,133.23,133.18,34.90916084]
[1726570927803,0.2615482,133.23,133.18,34.90916084]
[1726570928103,0.2615482,133.23,133.19,12.18346084]
[1726570929910,0.2615482,133.23,133.18,22.7257]
[1726570930503,0.2615482,133.23,133.18,30.2342]
[1726570930917,0.2615482,133.23,133.19,7.508]
[1726570931482,0.2615482,133.23,133.2,7.5074]
[1726570931807,0.2615482,133.23,133.19,69.0338413]
[1726570933101,0.2615482,133.23,133.2,7.5074]
[1726570933906,0.2615482,133.23,133.19,69.0338413]
[1726570934084,0.2615482,133.23,133.19,18.7698]
[1726570934398,0.2615482,133.23,133.18,30.2341]
[1726570934601,7.7673482,133.23,133.18,30.2341]
[1726570934802,0.2615482,133.23,133.18,30.2341]
[1726570938104,7.7676482,133.23,133.18,16.6317]
[1726570940789,7.7676482,133.23,133.18,24.1402]
[1726570941501,0.2615482,133.23,133.18,24.1402]
[1726570943198,7.7674482,133.23,133.18,24.1402]
[1726570945706,7.7674482,133.23,133.18,16.6317]
[1726570945942,7.5065,133.22,133.17,34.94697362]
[1726570946208,7.7675482,133.23,133.18,7.5086]
[1726570946390,0.2615482,133.23,133.18,7.5086]
[1726570947389,0.2615482,133.23,133.19,26.2774]
[1726570947696,0.2615482,133.23,133.19,18.7698]
[1726570948813,0.2615482,133.23,133.19,26.2777]
[1726570949815,0.2615482,133.23,133.22,46.4856573]
[1726570950001,0.2615482,133.23,133.22,63.41806445]
[1726570950197,0.2615482,133.23,133.22,39.64118045]
[1726570951507,0.2615482,133.23,133.22,63.41806445]
[1726570960420,0.2615482,133.23,133.22,19.64118045]
[1726570961929,0.2615482,133.23,133.22,43.41806445]
[1726570962220,0.2615482,133.23,133.22,52.08149863]
[1726570964630,0.2615482,133.23,133.22,43.41806445]
[1726570965032,0.2615482,133.23,133.22,52.0811937]
[1726570965222,0.2615482,133.23,133.22,43.41806445]
[1726570965425,0.2615482,133.23,133.22,52.0811937]
[1726570965931,0.2615482,133.23,133.22,43.41806445]
[1726570966533,0.2615482,133.23,133.22,63.41806445]
[1726570966739,0.2615482,133.23,133.22,72.08139215]
[1726570968047,0.2615482,133.23,133.22,48.30450815]
[1726570968221,0.2615482,133.23,133.22,39.64118045]
[1726570970443,0.2615482,133.23,133.22,48.30460359]
[1726570971550,0.2615482,133.23,133.22,36.16972314]
[1726570971844,0.2615482,133.23,133.22,39.64118045]
[1726570972740,0.2615482,133.23,133.22,48.30477183]
[1726570973146,0.2615482,133.23,133.22,73.58226742]
[1726570973321,0.2615482,133.23,133.22,72.08165583]
[1726570975224,0.2615482,133.23,133.22,63.41806445]
[1726570975443,0.2615482,133.23,133.22,72.08143639]
[1726570978755,0.2615482,133.23,133.22,72.08083269]
[1726570981353,0.2615482,133.23,133.22,63.41806445]
[1726570981536,0.2615482,133.23,133.22,72.08080139]
[1726570982539,0.2615482,133.27,133.22,72.08080139]
[1726570982540,0.2615482,133.27,133.25,18.7616]
[1726570982761,0.2615482,133.27,133.26,12.13488045]
[1726570983262,0.2615482,133.27,133.26,5.77076798]
[1726570984449,0.2615482,133.27,133.25,38.40098045]
[1726570984645,0.2615482,133.27,133.26,5.77076507]
[1726570986859,0.2615482,133.27,133.22,7.5063]
[1726570986860,7.7650482,133.27,133.22,7.5063]
[1726570987036,7.7650482,133.27,133.23,5.77138605]
[1726570987242,0.2615482,133.27,133.24,5.77138605]
[1726570987450,0.2615482,133.27,133.25,5.77138605]
[1726570987647,0.2615482,133.27,133.22,19.64108045]
[1726570987848,7.7653482,133.27,133.22,19.64108045]
[1726570988055,0.2615482,133.27,133.23,19.64028045]
[1726570988358,0.2615482,133.27,133.24,12.13488045]
[1726570988862,0.2615482,133.27,133.24,19.63998045]
[1726570989954,0.2615482,133.27,133.23,26.2698]
[1726570990132,0.2615482,133.27,133.23,30.89918045]
[1726570990342,7.5042,133.26,133.21,30.47097415]
[1726570990540,7.7651482,133.27,133.22,28.30494685]
[1726570990766,7.7651482,133.27,133.22,19.64118045]
[1726570990987,7.7651482,133.27,133.22,28.30509708]
[1726570991256,7.7651482,133.27,133.22,19.64118045]
[1726570991472,7.7651482,133.27,133.22,28.30509708]
[1726570991640,7.7651482,133.27,133.22,19.64118045]
[1726570991842,7.7651482,133.27,133.22,28.30509708]
[1726570992048,7.7651482,133.27,133.22,19.64118045]
[1726570992350,7.7651482,133.27,133.22,28.30509708]
[1726570992660,7.7651482,133.27,133.22,19.64118045]
[1726570994063,7.7651482,133.27,133.22,12.13488045]
[1726570995245,7.7651482,133.27,133.22,19.64118045]
[1726570995550,0.2615482,133.27,133.22,19.64118045]
[1726570995753,0.2615482,133.27,133.24,12.13488045]
[1726570995954,0.2615482,133.27,133.23,38.40508045]
[1726570996767,0.2615482,133.27,133.2,34.5056]
[1726570997065,7.505,133.25,133.2,38.40958045]
[1726570997450,6.4588482,133.27,133.2,12.13488045]
[1726570997451,7.5053,133.24,133.2,12.13488045]
[1726570997645,7.5053,133.24,133.19,19.64268045]
[1726570997852,7.5053,133.24,133.17,18.7718]
[1726570997853,7.5053,133.24,133.18,19.64318045]
[1726571001078,7.5053,133.24,133.19,7.5079]
[1726571001379,7.5053,133.24,133.19,19.64278045]
[1726571001964,7.505,133.25,133.2,7.5073]
[1726571002285,7.505,133.25,133.19,30.90468045]
[1726571002491,7.5054,133.24,133.19,38.41248045]
[1726571002664,7.5055,133.24,133.19,38.41268045]
[1726571002980,7.5055,133.24,133.19,26.2778]
[1726571003285,7.5055,133.24,133.19,38.41268045]
[1726571006895,7.5048,133.25,133.2,21.14323419]
[1726571007084,27.5043,133.26,133.21,7.5069]
[1726571007271,7.5043,133.26,133.21,38.40908045]
[1726571009093,13.9625482,133.27,133.22,19.64118045]
[1726571011986,0.2615482,133.27,133.23,21.1412369]
[1726571012178,0.2615482,133.27,133.24,1.5006018]
[1726571012380,0.2615482,133.27,133.24,19.63998045]
[1726571012675,0.2615482,133.27,133.24,12.13488045]
[1726571012871,0.2615482,133.27,133.23,38.40448045]
[1726571013701,7.7652482,133.27,133.23,18.764]
[1726571014698,0.2615482,133.27,133.23,26.2696]
[1726571014891,0.2615482,133.27,133.23,38.40448045]
[1726571015775,0.2615482,133.27,133.23,26.2696]
[1726571016092,0.2615482,133.27,133.23,38.40448045]
[1726571020900,0.2615482,133.27,133.25,12.13488045]
[1726571021283,0.2615482,133.27,133.24,38.40168045]
[1726571022994,0.2615482,133.27,133.25,19.63948045]
[1726571024607,0.2615482,133.27,133.25,7.5046]
[1726571024798,0.2615482,133.27,133.24,38.40168045]
[1726571025907,0.2615482,133.27,133.25,7.5046]
[1726571026979,0.2615482,133.27,133.24,38.40168045]
[1726571029200,0.2615482,133.27,133.24,26.2668]
[1726571029390,7.7652482,133.27,133.22,18.7658]
[1726571029593,0.2615482,133.27,133.2,6.081181]
[1726571029794,0.2615482,133.27,133.19,49.67438045]
[1726571030684,7.505,133.25,133.21,7.5069]
[1726571031084,7.505,133.25,133.2,26.2759]
[1726571033785,7.505,133.25,133.2,38.41078045]
[1726571036421,7.505,133.25,133.21,7.5067]
[1726571037305,0.2615482,133.27,133.21,7.5067]
[1726571037306,7.5042,133.26,133.21,7.5067]
[1726571037796,7.5047,133.25,133.21,7.5067]
[1726571038218,7.5047,133.25,133.2,38.41088045]
[1726571042118,7.5047,133.25,133.21,9.00757517]
[1726571042300,7.5042,133.26,133.22,7.506]
[1726571043126,0.2615482,133.27,133.23,19.64048045]
[1726571044100,0.2615482,133.27,133.24,7.5051]
[1726571044417,0.2615482,133.27,133.24,26.2682]
[1726571045190,0.2615482,133.27,133.25,7.5046]
[1726571045693,0.2615482,133.27,133.25,19.63948045]
[1726571046532,0.2615482,133.27,133.26,7.5041]
[1726571047841,0.2615482,133.27,133.26,13.27514634]
[1726571048016,0.2615482,133.27,133.26,5.77104634]
[1726571048739,0.2615482,133.27,133.26,13.27514634]
[1726571050334,0.2615482,133.27,133.26,13.27475921]
[1726571051229,0.2615482,133.27,133.26,50.68691083]
[1726571051623,0.2615482,133.27,133.26,49.18652366]
[1726571051835,0.2615482,133.27,133.26,37.05164321]
[1726571052031,0.2615482,133.27,133.26,49.18652366]
[1726571052924,0.2615482,133.27,133.26,37.05164321]
[1726571053918,0.2615482,133.27,133.26,31.280984]
[1726571054121,0.2615482,133.27,133.26,37.05112526]
[1726571054439,0.2615482,133.27,133.26,13.27424126]
[1726571057842,0.2615482,133.27,133.26,13.27455055]
[1726571061340,0.2615482,133.27,133.26,7.5041]
[1726571061538,0.2615482,133.27,133.26,13.27355898]
[1726571065044,0.2615482,133.27,133.26,7.5041]
[1726571065240,0.2615482,133.27,133.26,13.27354049]
[1726571066146,0.2615482,133.27,133.26,25.40842094]
[1726571069124,0.2615482,133.27,133.26,25.40847409]
[1726571071628,0.2615482,133.27,133.26,26.90880082]
[1726571071927,0.2615482,133.27,133.26,50.68568482]
[1726571072127,0.2615482,133.27,133.26,49.18535809]
[1726571072347,0.2615482,133.27,133.26,49.18525178]
[1726571073538,0.2615482,133.27,133.26,69.18525178]
[1726571073745,0.2615482,133.27,133.26,93.74778724]
[1726571079170,0.2615482,133.27,133.26,87.97758957]
[1726571079371,0.2615482,133.27,133.26,93.74608207]
[1726571079745,0.2615482,133.27,133.26,85.11625695]
[1726571079942,0.2615482,133.27,133.26,93.74613615]
[1726571082670,0.2615482,133.27,133.26,87.97764365]
[1726571082875,0.2615482,133.27,133.26,93.7461301]
[1726571089451,0.2615482,133.27,133.26,104.53307059]
[1726571089770,0.2615482,133.27,133.26,104.5330333]
[1726571089976,0.2615482,133.27,133.26,79.34776445]
[1726571090154,0.2615482,133.27,133.26,93.74579417]
[1726571090474,0.2615482,133.27,133.26,104.53272326]
[1726571094057,0.2615482,133.27,133.26,110.61036168]
[1726571094262,0.2615482,133.31,133.3,26.2564]
[1726571094460,0.2615482,133.31,133.3,67.9366509]
[1726571094686,0.2615482,133.31,133.3,76.56452118]
[1726571095388,0.2615482,133.31,133.3,102.64053996]
[1726571095562,0.2615482,133.31,133.3,113.42380977]
[1726571096488,0.2615482,133.35,133.34,50.025484]
[1726571096665,0.2615482,133.35,133.34,67.9288509]
[1726571097591,0.2615482,133.35,133.34,32.01708645]
[1726571099663,0.2615482,133.35,133.34,18.749]
[1726571099862,0.2615482,133.35,133.34,5.766546]
[1726571100589,0.2615482,133.35,133.32,7.5002]
[1726571100897,0.2615482,133.35,133.33,5.76705797]
[1726571101193,0.2615482,133.35,133.33,7.5001]
[1726571101562,0.2615482,133.35,133.34,7.4996]
[1726571102383,0.2615482,133.35,133.34,19.63448045]
[1726571102777,0.2615482,133.35,133.34,7.4996]
[1726571103294,0.2615482,133.35,133.34,19.63448045]
[1726571104372,0.2615482,133.35,133.34,7.4996]
[1726571104907,0.2615482,133.35,133.33,38.38488045]
[1726571105484,0.2615482,133.35,133.33,26.25]
[1726571106999,0.2615482,133.35,133.32,7.5006]
[1726571107205,0.2615482,133.35,133.33,5.76711225]
[1726571107426,0.2615482,133.35,133.32,7.5005]
[1726571107706,0.2615482,133.35,133.33,5.76715126]
[1726571107881,0.2615482,133.35,133.32,7.5005]
[1726571109689,7.7606482,133.35,133.32,7.5005]
[1726571110584,7.7606482,133.35,133.31,7.5009]
[1726571111986,7.7606482,133.35,133.32,7.5006]
[1726571112303,0.2615482,133.35,133.3,18.7534]
[1726571112502,7.5005,133.33,133.3,18.7534]
[1726571112712,7.5005,133.33,133.29,13.57814482]
[1726571113198,7.5005,133.33,133.3,7.5018]
[1726571113402,7.4997,133.34,133.3,7.5018]
[1726571114407,7.5002,133.33,133.3,7.5018]
[1726571117432,14.3579482,133.35,133.31,7.5011]
[1726571117608,7.7605482,133.35,133.31,7.5011]
[1726571118819,7.7605482,133.35,133.32,7.5007]
[1726571120029,7.7605482,133.35,133.31,7.501]
[1726571121037,7.7605482,133.35,133.32,7.5007]
[1726571123234,7.7605482,133.35,133.31,7.501]
[1726571123817,7.7605482,133.35,133.3,26.2557]
[1726571123818,7.5,133.34,133.3,26.2557]
[1726571125434,7.5002,133.33,133.3,18.7542]
[1726571127526,7.5002,133.33,133.3,26.2559]
[1726571128725,7.7608482,133.35,133.31,7.5012]
[1726571128918,7.7608482,133.35,133.32,7.5007]
[1726571129118,7.7608482,133.35,133.31,7.5009]
[1726571131040,7.7608482,133.35,133.32,7.5007]
[1726571131336,0.2615482,133.35,133.33,7.4998]
[1726571133917,0.2615482,133.35,133.32,26.2517]
[1726571134835,0.2615482,133.35,133.33,7.5]
[1726571135530,0.2615482,133.35,133.34,7.4996]
[1726571137836,0.2615482,133.35,133.34,43.41136445]
[1726571138530,0.2615482,133.35,133.34,31.276484]
[1726571140532,0.2615482,133.35,133.34,43.41136445]
[1726571140832,0.2615482,133.35,133.34,79.57200097]
[1726571143532,0.2615482,133.35,133.34,71.20698131]
[1726571143847,0.2615482,133.35,133.34,79.5679888]
[1726571145025,0.2615482,133.35,133.34,71.20698131]
[1726571145251,0.2615482,133.35,133.34,79.56682995]
[1726571146346,0.2615482,133.35,133.34,78.06771309]
[1726571146844,0.2615482,133.35,133.34,42.15594864]
[1726571147230,0.2615482,133.35,133.34,33.7961]
[1726571148134,0.2615482,133.35,133.34,69.70786445]
[1726571157654,0.2615482,133.35,133.34,63.41136445]
[1726571164775,0.2615482,133.35,133.34,51.276484]
[1726571169682,0.2615482,133.35,133.33,18.7491]
[1726571170767,0.2615482,133.35,133.3,18.7534]
[1726571170967,7.7608482,133.35,133.31,7.5012]
[1726571171167,0.2615482,133.35,133.32,7.5006]
[1726571171496,0.2615482,133.35,133.34,7.4996]
[1726571171693,0.2615482,133.35,133.34,26.2486]
[1726571173779,0.2615482,133.35,133.34,38.38348045]
[1726571174489,0.2615482,133.35,133.34,62.16036445]
[1726571174874,0.2615482,133.35,133.34,50.025484]
[1726571175071,0.2615482,133.35,133.34,62.16036445]
[1726571175666,0.2615482,133.35,133.34,82.16036445]
[1726571176087,0.2615482,133.35,133.34,70.025484]
[1726571176387,0.2615482,133.35,133.34,82.16036445]
[1726571179195,0.2615482,133.35,133.34,88.21959787]
[1726571181281,0.2615482,133.35,133.34,96.15129879]
[1726571181893,0.2615482,133.35,133.34,90.09206537]
[1726571182069,0.2615482,133.35,133.34,96.1485661]
[1726571182408,0.2615482,133.35,133.34,82.16036445]
[1726571182699,0.2615482,133.35,133.34,105.51430072]
[1726571185802,0.2615482,133.35,133.34,88.21667137]
[1726571185986,0.2615482,133.35,133.34,100.07354915]
[1726571186301,0.2615482,133.35,133.34,116.81096114]
[1726571186698,0.2615482,133.35,133.34,107.44299428]
[1726571188002,6.9882594,133.41,133.37,7.4978]
[1726571188197,7.4953,133.42,133.37,7.4978]
[1726571189203,7.4953,133.42,133.38,7.497]
[1726571189811,7.4957,133.41,133.37,7.4978]
[1726571190315,7.4957,133.41,133.36,33.34704425]
[1726571190316,7.4969,133.39,133.36,8.54521784]
[1726571190615,7.4969,133.39,133.35,7.499]
[1726571190909,7.4969,133.39,133.35,16.04421784]
[1726571191218,7.4973,133.38,133.34,22.10352501]
[1726571191385,7.498,133.37,133.33,34.79471784]
[1726571192419,7.498,133.37,133.33,26.2495]
[1726571192811,7.4991,133.35,133.32,8.55489193]
[1726571192997,20.0,133.38,133.3,18.7537]
[1726571193200,38.7436,133.38,133.32,8.55670249]
[1726571193412,7.5001,133.33,133.3,14.62049301]
[1726571193626,7.5001,133.33,133.3,6.06379052]
[1726571193816,7.5001,133.33,133.29,16.32055069]
[1726571194210,7.5001,133.33,133.29,7.7638482]
[1726571194521,18.7468,133.36,133.29,7.7638482]
[1726571194522,7.4997,133.34,133.29,7.7638482]
[1726571195634,7.5003,133.33,133.29,7.7638482]
[1726571196118,16.6331,133.34,133.3,18.7545]
[1726571196318,16.6331,133.34,133.3,26.2562]
[1726571196506,7.5008,133.32,133.29,0.2615482]
[1726571196707,7.5002,133.33,133.29,0.2615482]
[1726571197436,7.5002,133.33,133.29,7.7639482]
[1726571197603,16.6331,133.34,133.29,0.2615482]
[1726571197804,7.5006,133.33,133.29,0.2615482]
[1726571198799,7.5009,133.32,133.29,0.2615482]
[1726571200633,23.0568,133.34,133.29,7.7638482]
[1726571200833,23.0568,133.34,133.3,7.5018]
[1726571201005,16.6331,133.34,133.31,7.5011]
[1726571202339,7.4992,133.35,133.31,7.5011]
[1726571203130,7.4987,133.36,133.32,7.5006]
[1726571203529,7.4991,133.35,133.31,26.254]
[1726571204620,20.0,133.36,133.29,0.2615482]
[1726571204838,38.7464,133.36,133.29,0.2615482]
[1726571206137,7.5016,133.31,133.29,0.2615482]
[1726571207347,7.5008,133.32,133.29,0.2615482]
[1726571209039,7.5014,133.31,133.29,0.2615482]
[1726571209248,18.749,133.34,133.29,0.2615482]
[1726571209625,7.5018,133.3,133.29,0.2615482]
[1726571210526,7.5014,133.31,133.29,0.2615482]
[1726571218249,7.5018,133.3,133.29,0.2615482]
[1726571218551,7.5014,133.31,133.29,0.2615482]
[1726571218935,7.5018,133.3,133.29,0.2615482]